{"text_format":"1","workbook":"xlsx","n_sheets":1,"sheets":["About Macro Security"],"not_rendered":{"charts":1,"images":7,"macros":1,"external_links":0,"defined_names":124,"comments":1,"pivot_tables":0},"unopened":[],"bounds":{"document_bytes":16777216,"sheet_cells":100000,"rows_first":2000,"rows_last":500,"rows_between":2000,"halvings":0,"cell_chars":16384,"cell_head_chars":4096},"cells_cut":0,"cells_raw":0,"read":"whole","date_system":"1900"}

{"sheet":"About Macro Security","index":0,"n_rows":90,"n_cols":24,"rows_kept":90,"cut":false,"hidden":false,"merged":[]}
[]
[]
[null,null,null,null,null,null,null,null,null,null,null,null,null,null,null,null,null,null,null,null,"Tinc",0.02]
[null,null,null,null,null,null,null,null,null,null,null,null,null,null,null,null,null,null,null,null,"max Swing",15]
[null,null,null,null,null,null,"Time Inc",0.03,"Smaller = Slower",null,null,null,null,null,"Author: ","Ian Huitson",null,null,null,null,"Gravity",981.42]
[null,null,null,null,null,null,"Swing (Max)",35,"Degrees",null,null,null,null,null,"Inspiration: ","Newton Excel Bach"]
[null,null,null,null,null,null,"Gravity",{"$f":"V5","v":981.42},"cm/s2 ",null,null,null,null,null,"3D Code: ","AJP Excel Information",null,null,null,null,"Running",false]
[null,null,null,null,null,null,"Spacing",10,"cm",null,null,null,null,null,null,null,null,null,null,null,"Bob Color ",1]
[null,null,null,null,null,null,null,null,null,null,null,null,null,null,null,null,null,null,null,null,"Wire Color ",1]
[null,null,null,null,null,null,null,null,null,null,null,null,null,null,null,null,null,null,null,null,"Show Cage",true]
[null,null,null,null,null,null,null,null,null,null,null,null,"X Angle",335,null,null,null,null,null,null,"Show Axis",true]
[null,null,null,null,null,null,null,null,null,null,null,null,"Y Angle",45,null,null,null,null,null,null,"Pendulum","Length, cm","Cycles/T"]
[null,null,null,null,null,null,null,null,null,null,null,null,"Z Angle",0,null,null,null,null,null,null,1,60,31]
[null,null,null,null,null,null,null,null,null,null,null,null,null,null,null,null,null,null,null,null,2,{"$f":"$V$13*($W$13/W14)^2","v":52.947658402203864},33]
[null,null,null,null,null,null,null,null,null,null,null,null,null,null,null,null,null,null,null,null,3,47.069387755102042,{"$f":"+W14+($W$14-$W$13)","v":35}]
[null,null,null,null,null,null,null,null,null,null,null,null,null,null,null,null,null,null,null,null,4,42.118334550766981,37]
[null,null,null,null,null,null,null,null,null,null,null,null,null,null,null,null,null,null,null,null,5,37.909270216962518,39]
[null,null,null,null,null,null,null,null,null,null,null,null,null,null,null,null,null,null,null,null,6,34.301011302795956,41]
[null,null,null,null,null,null,null,null,null,null,null,null,null,null,null,null,null,null,null,null,7,31.184424012979981,43]
[null,null,null,null,null,null,null,null,null,null,null,null,null,null,null,null,null,null,null,null,8,28.474074074074071,45]
[null,null,null,null,null,null,null,null,null,null,null,null,null,null,null,null,null,null,null,null,9,26.102308736985059,47]
[null,null,null,null,null,null,null,null,null,null,null,null,null,null,null,null,null,null,null,null,10,24.014993752603083,49]
[null,null,null,null,null,null,null,null,null,null,null,null,null,null,null,null,null,null,null,null,11,22.168396770472889,51]
[null,null,null,null,null,null,null,null,null,null,null,null,null,null,null,null,null,null,null,null,12,20.526877892488429,53]
[null,null,null,null,null,null,null,null,null,null,null,null,null,null,null,null,null,null,null,null,13,19.061157024793388,55]
[null,null,null,null,null,null,null,null,null,null,null,null,null,null,null,null,null,null,null,null,14,17.746999076638968,57]
[null,null,null,null,null,null,null,null,null,null,null,null,null,null,null,null,null,null,null,null,15,16.564205688020685,59]
[null,null,null,null,null,null,null,null,null,null,null,null,null,null,null,null,null,null,null,null,16,15.495834453104004,61]
[]
[null,null,null,null,null,null,null,null,null,null,null,null,null,null,null,null,null,null,null,null,"Grid",50]
[]
[null,null,null,null,null,null,null,null,null,null,null,null,null,null,null,null,null,null,null,null,"Axes","X","Y","Z"]
[null,null,null,null,null,null,null,null,null,null,null,null,null,null,null,null,null,null,null,null,null,{"$f":"-Grid","v":-50},0,0]
[null,null,null,null,null,null,null,null,null,null,null,null,null,null,null,null,null,null,null,null,null,{"$f":"+Grid","v":50},0,0]
[]
[null,null,null,null,null,null,null,null,null,null,null,null,null,null,null,null,null,null,null,null,null,0,{"$f":"-Grid","v":-50},0]
[null,null,null,null,null,null,null,null,null,null,null,null,null,null,null,null,null,null,null,null,null,0,{"$f":"+Grid","v":50},0]
[]
[null,null,null,null,null,null,null,null,null,null,null,null,null,null,null,null,null,null,null,null,null,0,0,{"$f":"-Grid","v":-50}]
[null,null,null,null,null,null,null,null,null,null,null,null,null,null,null,null,null,null,null,null,null,0,0,{"$f":"+Grid","v":50}]
[]
[null,null,null,null,null,null,null,null,null,null,null,null,null,null,null,null,null,null,null,null,null,{"$f":"(V33*RM_X1)+(W33*RM_Y1)+(X33*RM_Z1)","v":-35.355339059327378},{"$f":"(V33*RM_X2)+(W33*RM_Y2)+(X33*RM_Z2)","v":14.941811936505983}]
[null,null,null,null,null,null,null,null,null,null,null,null,null,null,null,null,null,null,null,null,null,35.355339059327378,-14.941811936505983]
[null,null,null,null,null,null,null,null,null,null,null,null,null,null,null,null,null,null,null,null,null,0,0]
[null,null,null,null,null,null,null,null,null,null,null,null,null,null,null,null,null,null,null,null,null,0,-45.315389351832501]
[null,null,null,null,null,null,null,null,null,null,null,null,null,null,null,null,null,null,null,null,null,0,45.315389351832501]
[null,null,null,null,null,null,null,null,null,null,null,null,null,null,null,null,null,null,null,null,null,0,0]
[null,null,null,null,null,null,null,null,null,null,null,null,null,null,null,null,null,null,null,null,null,-35.35533905932737,-14.941811936505985]
[null,null,null,null,null,null,null,null,null,null,null,null,null,null,null,null,null,null,null,null,null,35.35533905932737,14.941811936505985]
[]
[null,null,null,null,null,null,null,null,null,null,null,null,null,null,null,null,null,null,null,null,"Cage","X","Y","Z"]
[null,null,null,null,null,null,null,null,null,null,null,null,null,null,null,null,null,null,null,null,null,0,0,-90]
[null,null,null,null,null,null,null,null,null,null,null,null,null,null,null,null,null,null,null,null,null,-40,-80,{"$f":"+X52","v":-90}]
[null,null,null,null,null,null,null,null,null,null,null,null,null,null,null,null,null,null,null,null,null,40,-80,{"$f":"+X53","v":-90}]
[null,null,null,null,null,null,null,null,null,null,null,null,null,null,null,null,null,null,null,null,null,0,0,{"$f":"+X54","v":-90}]
[]
[null,null,null,null,null,null,null,null,null,null,null,null,null,null,null,null,null,null,null,null,null,0,0,80]
[null,null,null,null,null,null,null,null,null,null,null,null,null,null,null,null,null,null,null,null,null,-40,-80,{"$f":"+X57","v":80}]
[null,null,null,null,null,null,null,null,null,null,null,null,null,null,null,null,null,null,null,null,null,40,-80,{"$f":"+X58","v":80}]
[null,null,null,null,null,null,null,null,null,null,null,null,null,null,null,null,null,null,null,null,null,0,0,{"$f":"+X59","v":80}]
[]
[null,null,null,null,null,null,null,null,null,null,null,null,null,null,null,null,null,null,null,null,null,0,0,-90]
[null,null,null,null,null,null,null,null,null,null,null,null,null,null,null,null,null,null,null,null,null,0,0,80]
[null,null,null,null,null,null,null,null,null,null,null,null,null,null,null,null,null,null,null,null,null,-40,-80,80]
[null,null,null,null,null,null,null,null,null,null,null,null,null,null,null,null,null,null,null,null,null,-40,-80,-90]
[null,null,null,null,null,null,null,null,null,null,null,null,null,null,null,null,null,null,null,null,null,40,-80,{"$f":"+X65","v":-90}]
[null,null,null,null,null,null,null,null,null,null,null,null,null,null,null,null,null,null,null,null,null,40,-80,80]
[]
[]
[]
[]
[null,null,null,null,null,null,null,null,null,null,null,null,null,null,null,null,null,null,null,null,null,{"$f":"(V52*RM_X1)+(W52*RM_Y1)+(X52*RM_Z1)","v":-63.639610306789272},{"$f":"(V52*RM_X2)+(W52*RM_Y2)+(X52*RM_Z2)","v":-26.895261485710776}]
[null,null,null,null,null,null,null,null,null,null,null,null,null,null,null,null,null,null,null,null,null,-91.923881554251182,-87.446434899437989]
[null,null,null,null,null,null,null,null,null,null,null,null,null,null,null,null,null,null,null,null,null,-35.35533905932737,-111.35333399784757]
[null,null,null,null,null,null,null,null,null,null,null,null,null,null,null,null,null,null,null,null,null,-63.639610306789272,-26.895261485710776]
[null,null,null,null,null,null,null,null,null,null,null,null,null,null,null,null,null,null,null,null,null,0,0]
[null,null,null,null,null,null,null,null,null,null,null,null,null,null,null,null,null,null,null,null,null,56.568542494923797,23.906899098409578]
[null,null,null,null,null,null,null,null,null,null,null,null,null,null,null,null,null,null,null,null,null,28.284271247461895,-36.644274315317631]
[null,null,null,null,null,null,null,null,null,null,null,null,null,null,null,null,null,null,null,null,null,84.852813742385706,-60.551173413727213]
[null,null,null,null,null,null,null,null,null,null,null,null,null,null,null,null,null,null,null,null,null,56.568542494923797,23.906899098409578]
[null,null,null,null,null,null,null,null,null,null,null,null,null,null,null,null,null,null,null,null,null,0,0]
[null,null,null,null,null,null,null,null,null,null,null,null,null,null,null,null,null,null,null,null,null,-63.639610306789272,-26.895261485710776]
[null,null,null,null,null,null,null,null,null,null,null,null,null,null,null,null,null,null,null,null,null,56.568542494923797,23.906899098409578]
[null,null,null,null,null,null,null,null,null,null,null,null,null,null,null,null,null,null,null,null,null,28.284271247461895,-36.644274315317631]
[null,null,null,null,null,null,null,null,null,null,null,null,null,null,null,null,null,null,null,null,null,-91.923881554251182,-87.446434899437989]
[null,null,null,null,null,null,null,null,null,null,null,null,null,null,null,null,null,null,null,null,null,-35.35533905932737,-111.35333399784757]
[null,null,null,null,null,null,null,null,null,null,null,null,null,null,null,null,null,null,null,null,null,84.852813742385706,-60.551173413727213]
[null,null,null,null,null,null,null,null,null,null,null,null,null,null,null,null,null,null,null,null,null,0,0]
[null,null,null,null,null,null,null,null,null,null,null,null,null,null,null,null,null,null,null,null,null,0,0]
[null,null,null,null,null,null,null,null,null,null,null,null,null,null,null,null,null,null,null,null,null,0,0]